bitfinex/quotes_ETHUSD_20251119
["timestamp","ask_amount","ask_price","bid_price","bid_amount"]
[1763515693409,0.90699264,3116.2,3116.1,0.4974]
[1763515694228,0.90699264,3116.2,3115.7,0.4709]
[1763515695861,0.4695,3116.7,3115.7,0.4709]
[1763515695862,0.405504,3116.6,3116.1,0.6851]
[1763515696057,1.14923752,3116.6,3116.2,0.4974]
[1763515697459,0.4938,3116.3,3115.7,0.001]
[1763515697661,0.90699264,3116.2,3115.7,0.001]
[1763515698640,0.90699264,3116.2,3115.7,0.4709]
[1763515699037,0.90699264,3116.2,3116.1,0.4974]
[1763515699362,1.14923752,3116.6,3116.1,0.6851]
[1763515699526,0.20562302,3116.5,3116.1,0.6851]
[1763515699925,0.20562302,3116.5,3116.1,0.4974]
[1763515700968,0.74373352,3116.6,3116.4,0.4974]
[1763515701263,0.74373352,3116.6,3116.5,0.4974]
[1763515701428,0.90699264,3116.7,3116.5,0.4974]
[1763515702060,0.252,3116.6,3116.1,0.4699]
[1763515703469,0.7408,3116.6,3115.9,0.1877]
[1763515703759,0.16477926,3116.5,3115.9,0.6851]
[1763515704151,0.16477926,3116.5,3116.0,0.4974]
[1763515705370,0.4618,3116.1,3115.7,0.001]
[1763515706177,0.4618,3116.1,3115.7,0.4984]
[1763515706866,0.90699264,3116.2,3115.7,0.4984]
[1763515707063,1.31249664,3116.7,3116.1,0.633]
[1763515707262,1.31249664,3116.7,3115.7,0.4984]
[1763515707562,0.405504,3116.5,3115.7,0.4984]
[1763515707964,0.74373352,3116.6,3115.7,0.4984]
[1763515708341,0.74373352,3116.6,3116.0,0.001]
[1763515708647,0.74573352,3116.6,3116.0,0.001]
[1763515708862,0.16527262,3116.5,3116.0,0.001]
[1763515709340,0.16527262,3116.5,3116.1,0.6796]
[1763515710140,0.16527262,3116.5,3116.0,0.001]
[1763515710141,0.90699264,3116.2,3116.0,0.001]
[1763515710539,0.252,3116.1,3116.0,0.001]
[1763515710768,0.90699264,3116.2,3116.0,0.001]
[1763515712683,0.7408,3116.1,3116.0,0.001]
[1763515712849,1.146304,3116.1,3116.0,0.001]
[1763515713051,1.96411752,3116.1,3116.0,0.001]
[1763515715788,0.405504,3116.0,3115.7,0.001]
[1763515715960,7.44223524,3115.8,3115.7,0.001]
[1763515716282,7.93343524,3115.8,3115.7,0.001]
[1763515716463,8.72677876,3115.8,3115.7,0.001]
[1763515720455,0.90699264,3115.8,3115.7,0.9218]
[1763515726263,0.90699264,3115.8,3115.7,0.4527]
[1763515726699,0.90699264,3115.8,3115.7,0.9218]
[1763515727775,0.90699264,3115.8,3115.7,0.001]
[1763515728365,0.90699264,3115.8,3115.7,0.4527]
[1763515730094,1.17809264,3115.8,3115.7,0.001]
[1763515731229,0.90699264,3115.8,3115.7,0.001]
[1763515731362,0.90699264,3115.8,3115.7,0.4527]
[1763515732460,0.90699264,3115.8,3115.7,0.9218]
[1763515736499,0.90699264,3115.8,3115.7,0.4527]
[1763515739486,0.002,3116.0,3115.7,0.4527]
[1763515739707,0.002,3116.0,3115.9,0.4517]
[1763515740213,0.002,3116.0,3115.9,0.9208]
[1763515740411,0.002,3116.0,3115.9,0.4517]
[1763515740885,0.002,3116.0,3115.9,0.9208]
[1763515744689,0.002,3116.0,3115.9,1.04945314]
[1763515752155,0.002,3116.0,3115.9,0.58035314]
[1763515752435,0.002,3116.0,3115.9,0.4747]
[1763515754032,0.002,3116.0,3115.9,0.9486]
[1763515754739,0.002,3116.0,3115.9,0.4747]
[1763515754934,0.002,3116.0,3115.9,0.9486]
[1763515755308,0.002,3116.0,3115.9,1.07726597]
[1763515758842,0.002,3116.0,3115.9,1.10935942]
[1763515759553,0.002,3116.0,3115.9,1.07726597]
[1763515760049,0.002,3116.0,3115.9,1.10935942]
[1763515760252,0.002,3116.0,3115.9,1.07726597]
[1763515762372,0.002,3116.0,3115.9,1.07826597]
[1763515763438,0.4932,3116.0,3115.9,0.12966597]
[1763515763638,0.002,3116.0,3115.9,0.61746597]
[1763515764049,0.002,3116.0,3115.9,1.08546597]
[1763515765825,0.002,3116.0,3115.9,1.11755942]
[1763515770722,0.002,3116.4,3116.0,0.405504]
[1763515770958,0.002,3116.4,3116.3,0.6807]
[1763515771181,0.002,3116.4,3116.3,1.11829333]
[1763515771464,0.4881,3118.2,3116.4,0.405504]
[1763515771629,0.4881,3118.2,3117.6,0.4878]
[1763515772266,0.4881,3118.5,3117.6,0.9558]
[1763515772939,0.4881,3118.5,3117.6,0.4878]
[1763515773135,0.1928,3118.6,3117.6,0.4878]
[1763515773439,0.6809,3118.6,3117.6,0.4878]
[1763515773842,0.4881,3118.5,3117.6,0.4878]
[1763515775658,0.4881,3118.5,3117.5,0.873504]
[1763515776025,0.2645,3117.6,3117.5,0.873504]
[1763515776228,0.2645,3117.6,3116.8,0.451]
[1763515776229,0.9312,3117.6,3116.8,0.451]
[1763515776456,0.4454,3117.6,3116.8,0.451]
[1763515776666,0.2645,3117.6,3116.8,0.451]
[1763515777533,0.2645,3117.6,3116.9,0.03208315]
[1763515778079,0.2645,3117.6,3117.0,0.451]
[1763515778280,0.2645,3117.6,3117.0,0.9391]
[1763515778448,0.2645,3117.6,3117.1,0.1856]
[1763515778943,0.2645,3117.6,3117.2,0.451]
[1763515779961,0.4548,3118.3,3117.5,0.4601]
[1763515780780,0.1928,3118.6,3117.6,0.9058]
[1763515780934,0.4548,3118.5,3117.7,0.451]
[1763515781435,0.002,3118.0,3117.7,0.451]
[1763515781861,0.4929,3117.8,3117.6,0.4548]
[1763515782156,0.1853,3117.9,3117.1,0.1856]
[1763515782366,0.6401,3117.9,3117.7,0.4548]
[1763515782670,0.002,3118.0,3117.1,0.6366]
[1763515782869,0.002,3118.0,3117.2,0.4548]
[1763515783030,0.1853,3117.9,3117.2,0.4548]
[1763515783235,0.6401,3117.9,3117.2,0.4548]
[1763515783533,0.1853,3117.9,3117.2,0.9058]
[1763515783730,0.1853,3117.9,3117.3,0.451]
[1763515784134,0.6401,3117.9,3117.2,0.4548]
[1763515784949,0.4548,3117.8,3117.2,0.4548]
[1763515785646,0.002,3118.0,3117.2,0.9058]
[1763515785853,0.4068,3118.2,3117.2,0.9058]
[1763515786546,0.1928,3118.6,3117.3,0.451]
[1763515787146,0.1928,3118.6,3117.2,0.4548]
[1763515787349,0.1928,3118.6,3117.3,0.451]
[1763515788072,0.4548,3118.5,3117.3,0.451]
[1763515790061,0.4548,3118.5,3117.4,0.03207801]
[1763515790436,0.4548,3118.5,3117.5,0.451]
[1763515790638,0.4548,3118.5,3117.5,0.9058]
[1763515791036,0.1928,3118.6,3117.6,0.451]
[1763515791363,0.1928,3118.6,3117.6,1.3568]
[1763515791571,0.1928,3118.6,3117.7,0.451]
[1763515792084,0.4548,3118.5,3117.6,0.9058]
[1763515792254,0.4048,3118.5,3117.6,0.9058]
[1763515792762,0.2454,3117.7,3117.6,0.9058]
[1763515792971,0.4929,3117.7,3117.6,0.9058]
[1763515793278,0.4929,3117.7,3116.4,0.001]
[1763515793455,0.4929,3117.7,3117.2,0.4929]
[1763515793857,0.2399,3117.3,3117.2,0.4929]
[1763515795640,0.4548,3117.5,3117.2,0.4929]
[1763515795641,0.4548,3117.8,3117.2,0.953]
[1763515795847,0.4548,3117.8,3117.2,0.4601]
[1763515796648,0.1028,3117.9,3117.2,0.4601]
[1763515797156,0.4548,3117.8,3117.2,0.4601]
[1763515797371,0.1028,3117.9,3117.2,0.4601]
[1763515797680,0.4548,3118.3,3117.3,0.451]
[1763515798384,0.4548,3118.3,3117.2,0.20036926]
[1763515798741,0.4548,3118.3,3117.2,0.65136926]
[1763515799168,0.4548,3118.3,3117.1,1.09259264]
[1763515799345,0.4548,3118.3,3117.1,0.90699264]
[1763515799767,0.4548,3118.3,3117.1,0.90799264]
[1763515800347,0.4548,3118.3,3117.1,1.09359264]
[1763515800780,0.4548,3118.3,3117.2,0.451]
[1763515801586,0.4548,3118.3,3117.3,0.4548]
[1763515802048,0.1958,3117.4,3117.3,0.4548]
[1763515802255,0.3811,3117.4,3117.1,0.001]
[1763515802451,0.002,3117.2,3117.1,0.001]
[1763515802751,0.407504,3117.2,3117.1,0.001]
[1763515802947,0.862304,3117.2,3117.1,0.001]
[1763515804247,0.4568,3117.2,3117.1,0.001]
[1763515804947,0.002,3117.2,3117.1,0.001]
[1763515805376,6.57533343,3117.6,3117.1,0.4611]
[1763515805674,0.90699264,3117.5,3117.1,0.4611]
[1763515806045,0.1958,3117.2,3117.1,0.001]
[1763515806671,0.6481,3117.2,3117.1,0.001]
[1763515807812,0.6481,3117.2,3116.8,0.001]
[1763515808119,0.90699264,3117.5,3116.8,0.001]
[1763515808473,0.6697,3117.7,3116.8,0.001]
[1763515808669,0.4844,3117.6,3116.8,0.001]
[1763515809114,0.90699264,3117.5,3116.8,0.001]
[1763515809324,0.75119261,3117.4,3116.8,0.001]
[1763515809619,1.23559261,3117.4,3116.8,0.001]
[1763515810773,0.1665,3116.9,3116.8,0.001]
[1763515810992,0.4844,3117.3,3116.8,0.001]
[1763515811205,0.1665,3116.9,3116.8,0.001]
[1763515811403,0.3473,3116.9,3116.8,0.001]
[1763515811881,1.39139264,3117.5,3116.8,0.001]
[1763515812090,1.23559261,3117.4,3116.8,0.001]
[1763515812478,0.75119261,3117.4,3116.8,0.001]
[1763515812677,0.4844,3117.6,3116.8,0.001]
[1763515813075,0.0984,3117.9,3116.8,0.49268418]
[1763515813404,0.0984,3117.9,3116.8,0.4606]
[1763515813715,0.5828,3117.9,3116.8,0.4606]
[1763515813915,0.5828,3117.9,3116.9,0.4606]
[1763515814122,1.34383261,3117.9,3116.9,0.4606]
[1763515814330,1.34383261,3117.9,3116.8,0.4606]
[1763515814528,0.4844,3117.8,3116.9,0.4606]
[1763515815013,0.4844,3117.8,3117.0,0.4596]
[1763515815215,0.4844,3117.8,3116.9,0.4606]
[1763515815533,0.4844,3117.8,3116.9,0.9202]
[1763515816232,0.0984,3117.9,3117.0,0.4596]
[1763515816719,0.0984,3117.9,3117.1,0.1984]
[1763515817096,0.0984,3117.9,3117.1,0.658]
[1763515817642,6.31533343,3118.6,3117.1,0.658]
[1763515817643,0.1948,3118.6,3117.8,0.4652]
[1763515817925,0.1948,3118.6,3117.9,0.4652]
[1763515818222,0.1948,3118.6,3117.9,0.9304]
[1763515818419,0.6792,3118.6,3117.9,0.9304]
[1763515818632,0.6792,3118.6,3117.9,1.39]
[1763515819136,0.6792,3118.6,3117.1,0.1984]
[1763515819137,0.1623,3118.0,3117.1,0.1984]
[1763515819632,0.6695,3117.9,3117.4,0.90699264]
[1763515819829,0.6695,3117.9,3117.1,0.658]
[1763515820034,0.6695,3117.9,3117.2,0.4596]
[1763515820618,0.4844,3117.8,3117.2,0.4596]
[1763515820820,0.4844,3117.8,3116.9,0.001]
[1763515820821,0.1625,3117.3,3116.9,0.001]
[1763515821022,0.1625,3117.3,3116.9,0.4616]
[1763515821723,0.6407,3117.3,3116.9,0.4616]
[1763515822042,0.6407,3117.3,3116.9,0.001]
[1763515822610,0.1625,3117.3,3116.9,0.001]
[1763515823070,0.6407,3117.3,3116.9,0.001]
[1763515823250,0.1625,3117.3,3116.9,0.001]
[1763515823562,1.38519264,3117.6,3116.9,0.001]
[1763515823849,2.13576525,3117.6,3116.9,0.001]
[1763515824751,0.75057261,3117.6,3116.9,0.001]
[1763515825052,0.4782,3117.8,3116.9,0.4877]
[1763515825223,0.4782,3117.8,3116.9,0.001]
[1763515826515,0.405504,3117.7,3116.9,0.001]
[1763515826945,0.883704,3117.7,3116.9,0.001]
[1763515827129,0.1851,3117.9,3117.0,0.4867]
[1763515827449,0.6633,3117.9,3117.0,0.4867]
[1763515827825,0.6633,3117.9,3117.1,0.5187811]
[1763515828044,0.6633,3117.9,3117.1,0.4867]
[1763515828350,0.6633,3117.9,3117.2,0.4867]
[1763515828518,0.4782,3118.4,3117.2,0.4867]
[1763515828719,0.4782,3118.4,3117.8,0.4592]
[1763515829261,0.1541,3117.9,3117.2,0.4867]
[1763515829449,0.3535,3117.9,3117.7,0.5187811]
[1763515829954,0.1573,3117.8,3117.7,0.5187811]
[1763515831579,0.6295,3117.8,3116.9,0.001]
[1763515831881,0.6295,3117.8,3117.3,0.4754]
[1763515832065,0.4722,3117.7,3117.3,0.4754]
[1763515832366,0.1573,3117.8,3117.3,0.4754]
[1763515832568,0.4782,3117.8,3117.3,0.4754]
[1763515833874,0.90699264,3118.1,3117.3,0.4754]
[1763515834059,0.4782,3118.3,3117.7,0.4592]
[1763515835258,0.1541,3117.8,3117.3,0.4754]
[1763515835573,0.405504,3118.5,3117.4,0.4867]
[1763515835574,0.4782,3118.2,3117.4,0.4867]
[1763515836275,0.4782,3118.5,3117.4,0.4867]
[1763515836501,0.002,3117.8,3117.4,0.4867]
[1763515836949,0.002,3117.8,3117.7,0.4818]
[1763515837352,0.002,3117.8,3117.7,0.9575]
[1763515839386,0.002,3117.8,3117.7,1.4157]
[1763515840688,0.002,3117.8,3117.7,0.4818]
[1763515840890,0.483,3117.8,3117.4,0.4757]
[1763515841292,0.002,3117.8,3117.4,0.4757]
[1763515841506,0.002,3117.8,3117.0,0.651]
[1763515841685,0.2887,3117.5,3116.9,0.001]
[1763515842191,0.2887,3117.5,3116.9,0.4767]
[1763515843057,0.2887,3117.5,3116.9,0.001]
[1763515843258,0.4565,3117.0,3116.9,0.001]
[1763515843688,1.49530261,3117.0,3116.9,0.001]
[1763515845130,1.20490261,3117.0,3116.9,0.001]
[1763515845332,0.4565,3117.0,3116.9,0.001]
[1763515846202,0.407404,3116.9,3116.5,0.001]
[1763515846433,0.2826,3116.6,3116.5,0.001]
[1763515846618,0.7408,3116.6,3116.5,0.001]
[1763515846933,0.2826,3116.6,3116.5,0.001]
[1763515847451,1.09559264,3116.9,3116.5,0.001]
[1763515847606,6.12053343,3117.5,3116.5,0.001]
[1763515847820,0.1928,3118.6,3116.5,0.001]
[1763515847821,0.4602,3117.8,3116.5,0.50878727]
[1763515848058,0.4602,3117.8,3116.5,0.4767]
[1763515848564,6.58073343,3117.8,3116.5,0.4767]
[1763515848768,1.57344598,3117.7,3116.5,0.4767]
[1763515848925,2.03164598,3117.7,3116.5,0.4767]
[1763515849126,0.4582,3117.6,3116.5,0.4767]
[1763515850122,6.12053343,3117.3,3116.5,0.001]
[1763515850334,1.51904598,3117.2,3116.5,0.001]
[1763515851275,1.07025334,3117.2,3116.5,0.001]
[1763515851581,0.4582,3117.2,3116.5,0.001]
[1763515853954,0.4731,3116.6,3116.5,0.001]
[1763515854677,0.4565,3116.8,3116.5,0.001]
[1763515854976,0.2862,3116.6,3116.5,0.001]
[1763515855180,0.691704,3116.6,3116.5,0.001]
[1763515855384,1.96407701,3116.6,3116.5,0.001]
[1763515856540,1.10377301,3116.6,3116.5,0.001]
[1763515856747,0.2862,3116.6,3116.5,0.001]
[1763515857580,0.741,3116.6,3116.5,0.001]
[1763515857940,1.09559264,3116.9,3116.5,0.001]
[1763515858141,0.481,3116.6,3116.5,0.001]
[1763515858360,0.262,3116.8,3116.5,0.001]
[1763515858943,0.4788,3116.6,3116.5,0.001]
[1763515859646,0.743,3116.6,3116.5,0.001]
[1763515859845,1.09559264,3116.9,3116.1,0.001]
[1763515859846,9.50602664,3116.5,3116.1,0.001]
[1763515860154,0.0084,3115.7,3114.5,0.001]
[1763515860477,7.76192607,3115.6,3114.6,0.4757]
[1763515860864,0.011,3115.3,3114.5,0.001]
[1763515861063,0.4565,3115.1,3114.5,0.001]
[1763515861262,0.90699264,3115.0,3114.5,0.001]
[1763515861573,0.4425,3114.6,3114.5,0.001]
[1763515861740,7.02752607,3114.6,3114.5,0.001]
[1763515861944,0.90699264,3114.6,3114.5,0.001]
[1763515863376,7.28142607,3114.6,3114.5,0.001]
[1763515863685,8.00956868,3114.6,3114.5,0.001]
[1763515863839,8.46576868,3114.6,3114.5,0.001]
[1763515864153,8.00956868,3114.6,3114.5,0.001]
[1763515864348,0.90699264,3114.6,3114.5,0.4828]
[1763515864559,0.90699264,3114.6,3114.5,0.001]
[1763515864783,6.30913343,3115.6,3114.5,0.9585]
[1763515864985,6.76733343,3116.0,3115.0,0.4818]
[1763515865278,0.67673334,3115.9,3115.0,0.4818]
[1763515865491,0.4582,3115.9,3114.5,0.001]
[1763515865694,0.90699264,3115.4,3114.5,0.001]
[1763515866143,0.4582,3115.3,3114.5,0.001]
[1763515866782,0.90699264,3114.9,3114.5,0.001]
[1763515866988,0.1647,3114.8,3114.5,0.001]
[1763515867158,0.2612,3114.6,3114.5,0.001]
[1763515867372,0.666704,3114.6,3114.5,0.001]
[1763515867550,2.04629664,3114.6,3114.5,0.001]
[1763515868002,1.16819264,3114.6,3114.5,0.001]
[1763515868146,0.189,3115.8,3114.5,0.9493]
[1763515868346,0.189,3115.8,3114.6,0.4971]
[1763515868571,0.4747,3115.7,3114.6,0.9483]
[1763515868969,0.4747,3115.7,3114.7,0.4512]
[1763515869177,0.189,3115.8,3114.7,0.4512]
[1763515869878,1.38169264,3116.3,3114.7,0.4512]
[1763515870083,6.26914709,3116.4,3114.7,0.4512]
[1763515870294,0.4747,3116.7,3114.8,0.03210479]
[1763515870494,0.4747,3116.7,3114.9,0.4512]
[1763515870686,0.405504,3116.6,3114.9,0.4512]
[1763515871020,6.26914709,3117.1,3114.9,0.4512]
[1763515871176,0.83437471,3116.9,3114.9,0.4512]
[1763515871477,0.83437471,3116.9,3115.0,0.03210272]
[1763515871674,0.4747,3116.8,3114.9,0.4512]
[1763515873496,0.002,3116.7,3114.9,0.4512]
[1763515873882,0.002,3116.7,3115.0,0.03210272]
[1763515874084,0.002,3116.7,3115.1,0.405504]
[1763515874329,0.002,3116.7,3115.2,0.4512]
[1763515877915,0.002,3116.7,3115.3,0.4747]
[1763515878217,0.4767,3116.7,3115.3,0.4747]
[1763515878420,0.4767,3116.7,3115.4,0.4512]
[1763515880280,0.002,3116.7,3115.4,0.4512]
[1763515880482,0.4767,3116.7,3115.4,0.4512]
[1763515880714,0.002,3116.7,3115.4,0.4512]
[1763515880913,0.002,3116.7,3115.5,0.03209757]
[1763515881295,0.002,3116.7,3115.6,0.4512]
[1763515881606,0.4767,3116.7,3115.3,0.4878]
[1763515883086,0.4767,3116.7,3115.3,0.51989963]
[1763515883418,0.4767,3116.7,3115.3,0.4878]
[1763515885125,1.31249664,3116.4,3115.1,0.1878]
[1763515885336,0.75816437,3116.3,3115.1,0.1878]
[1763515885538,1.21576437,3116.3,3115.1,0.1878]
[1763515885715,0.4576,3116.2,3115.1,0.1878]
[1763515885912,0.75816437,3116.3,3115.1,0.1878]
[1763515885913,0.75816437,3116.3,3115.2,0.4878]
[1763515886119,0.405504,3116.5,3115.2,0.4878]
[1763515887008,0.4576,3116.4,3115.2,0.4878]
[1763515887207,1.36459264,3116.4,3115.1,0.6756]
[1763515887402,0.4576,3116.3,3115.2,0.4878]
[1763515888317,0.4576,3116.3,3114.3,4.76799264]
[1763515888318,0.405504,3116.2,3114.3,4.76799264]
[1763515888538,0.405504,3116.2,3114.9,0.4878]
[1763515888739,0.405504,3116.0,3114.9,0.4878]
[1763515889239,0.6454,3115.9,3114.5,0.001]
[1763515889447,0.6454,3115.9,3114.9,0.4878]
[1763515890514,0.405504,3116.2,3115.0,0.03210272]
[1763515890815,0.4576,3116.3,3115.1,0.03210169]
[1763515891015,0.76337397,3116.3,3114.9,0.4878]
[1763515891230,0.4576,3116.8,3115.1,0.4878]
[1763515891623,0.4576,3116.8,3115.2,0.6754]
[1763515891812,0.407504,3116.7,3115.2,0.6754]
[1763515892014,0.407504,3116.7,3115.3,0.4878]
[1763515892432,0.4596,3116.7,3115.3,0.4878]
[1763515893941,0.90699264,3116.4,3115.3,0.4878]
[1763515894143,0.71761397,3116.3,3115.2,0.1876]
[1763515894348,1.17521397,3116.3,3115.2,0.1876]
[1763515894525,0.405504,3116.1,3115.2,0.1876]
[1763515894723,0.405504,3116.1,3114.5,0.001]
[1763515894724,0.4576,3116.0,3114.7,0.4878]
[1763515895143,0.1878,3115.9,3114.7,0.4878]
[1763515895525,0.16246066,3116.2,3114.7,0.4878]
[1763515895746,0.71761397,3116.3,3115.8,0.1876]
[1763515895927,0.405504,3116.4,3114.7,0.4878]
[1763515896128,0.4576,3116.5,3114.8,0.4878]
[1763515896329,0.4576,3116.5,3114.9,0.03210375]
[1763515896551,0.4576,3116.5,3114.8,0.4878]
[1763515897731,0.90699264,3116.4,3114.8,0.4878]
[1763515897932,0.76337397,3116.3,3114.8,0.4878]
[1763515898450,1.21927397,3116.3,3114.8,0.4878]
[1763515900467,0.002,3116.7,3116.2,0.4864]
[1763515900968,0.002,3116.7,3116.3,0.4587]
[1763515901447,0.002,3116.7,3116.1,0.1881]
[1763515901646,0.002,3116.7,3115.0,0.1881]
[1763515901967,0.4579,3116.7,3115.6,0.4587]
[1763515903570,0.4579,3116.7,3115.0,0.6468]
[1763515903867,0.90699264,3116.5,3115.2,0.4587]
[1763515904033,0.75816437,3116.4,3115.2,0.4587]
[1763515904879,1.21406437,3116.4,3115.2,0.4587]
[1763515905061,0.4559,3116.3,3115.2,0.4587]
[1763515906153,0.4559,3116.3,3115.0,0.1881]
[1763515906466,0.405504,3116.2,3115.0,0.1881]
[1763515906833,0.405504,3116.0,3115.0,0.1881]
[1763515907030,0.90699264,3115.9,3114.8,0.1881]
[1763515907352,0.75816437,3115.8,3114.8,0.1881]
[1763515907555,1.21406437,3115.8,3114.8,0.1881]
[1763515907754,0.4559,3115.7,3114.8,0.1881]
[1763515908065,0.4559,3115.7,3114.8,0.1891]
[1763515908243,0.75816437,3115.8,3115.6,0.4864]
[1763515908448,0.4539,3115.7,3114.9,0.4587]
[1763515908685,0.1853,3115.9,3114.9,0.4587]
[1763515910176,0.6412,3115.9,3114.9,0.4587]
[1763515912482,0.4559,3115.8,3114.8,0.1891]
[1763515912835,0.4559,3115.8,3114.8,0.6478]
[1763515913273,0.405504,3115.7,3114.8,0.001]
[1763515913872,0.405504,3115.5,3114.8,0.001]
[1763515914251,0.861404,3115.5,3114.8,0.001]
[1763515914969,0.6412,3115.9,3114.9,0.4587]
[1763515915269,0.4559,3115.8,3114.8,0.001]
[1763515915489,0.284,3114.9,3114.8,0.001]
[1763515915692,7.86564373,3114.9,3114.8,0.001]
[1763515915862,9.1064081,3114.9,3114.8,0.001]
[1763515921162,9.1064081,3114.9,3114.3,0.001]
[1763515921163,0.0045,3114.5,3114.3,0.001]
[1763515921396,0.405504,3114.3,3114.1,0.001]
[1763515921690,7.58894373,3114.3,3114.1,0.001]
[1763515921855,0.90699264,3114.2,3114.1,0.001]
[1763515922056,2.04519664,3114.2,3114.1,0.001]
[1763515923595,1.18379264,3114.2,3114.1,0.001]
[1763515924675,0.4559,3115.3,3114.1,1.1342]
[1763515924876,0.4559,3115.3,3114.2,0.4864]
[1763515925112,6.72504709,3115.6,3114.3,0.4587]
[1763515925269,0.67250471,3115.5,3114.3,0.4587]
[1763515925472,2.03539735,3115.5,3114.3,0.4587]
[1763515925677,0.861404,3115.4,3114.3,0.4587]
[1763515925885,0.4559,3115.4,3114.3,0.4587]
[1763515928071,0.67250471,3115.5,3114.3,0.4587]
[1763515928276,0.405504,3115.7,3114.3,0.4587]
[1763515928806,0.90699264,3115.3,3114.3,0.4587]
[1763515929378,6.12896805,3114.9,3114.1,0.1891]
[1763515929578,1.31249664,3114.8,3114.1,0.001]
[1763515929799,1.31249664,3114.8,3114.1,0.1861]
[1763515929800,0.74414647,3114.7,3114.1,0.1861]
[1763515930111,0.74414647,3114.7,3114.1,0.6815]
[1763515930313,0.74414647,3114.7,3114.1,0.1861]
[1763515930678,0.74414647,3114.7,3114.1,0.6815]
[1763515931177,6.12896805,3114.4,3114.1,0.001]
[1763515931383,0.61289681,3114.3,3114.1,0.001]
[1763515931602,0.61289681,3114.3,3114.1,0.1861]
[1763515931795,0.61289681,3114.3,3114.2,0.4635]
[1763515932209,0.61289681,3114.3,3114.1,0.001]
[1763515932726,0.7381,3114.2,3114.1,0.001]
[1763515932875,1.52049975,3114.2,3114.0,0.001]
[1763515933286,0.0046,3114.1,3114.0,0.001]
[1763515933484,1.24419975,3114.2,3114.0,0.001]
[1763515933917,1.24419975,3114.2,3114.1,0.6486]
[1763515934404,6.12896805,3114.6,3114.1,1.144]
[1763515934713,1.31249664,3114.5,3114.0,0.001]
[1763515935011,1.31249664,3114.5,3114.1,0.1851]
[1763515935012,0.74414647,3114.4,3114.1,0.1851]
[1763515935217,0.74414647,3114.4,3114.3,0.4635]
[1763515935383,0.90699264,3114.6,3114.3,0.4635]
[1763515935716,0.90699264,3114.6,3114.3,0.9589]
[1763515935883,0.90699264,3114.6,3114.5,0.4635]
[1763515936386,0.90699264,3114.6,3114.5,0.9589]
[1763515936782,0.90699264,3114.6,3114.5,0.4635]
[1763515937082,1.61058871,3114.6,3114.5,0.4635]
[1763515937380,1.61058871,3114.6,3114.5,0.9589]
[1763515937918,0.405504,3114.5,3114.1,0.1851]
[1763515938117,0.90699264,3114.1,3114.0,0.001]
[1763515938280,1.61058871,3114.1,3113.9,0.001]
[1763515938611,7.73955676,3114.1,3114.0,0.4635]
[1763515938827,7.44146469,3114.1,3114.0,0.4635]
[1763515939189,0.90699264,3114.0,3113.9,0.001]
[1763515939620,0.90699264,3114.0,3113.7,0.4964]
[1763515939621,0.90699264,3114.0,3113.7,0.001]
[1763515939798,0.90699264,3114.0,3112.6,0.1881]
[1763515939799,0.405504,3113.9,3113.0,0.4964]
[1763515940117,0.405504,3113.5,3113.0,0.4964]
[1763515940423,1.31249664,3113.5,3113.0,0.4964]
[1763515940620,0.90699264,3113.6,3113.4,0.9599]
[1763515940807,1.61058871,3113.6,3113.5,0.4635]
[1763515941005,1.61058871,3113.6,3113.5,0.9589]
[1763515941328,0.70359607,3113.6,3113.5,0.9589]
[1763515941485,0.405504,3114.3,3113.5,0.9589]
[1763515941701,0.405504,3114.3,3113.5,0.4635]
[1763515941905,0.405504,3114.4,3113.5,0.9571]
[1763515942120,0.459,3114.3,3113.5,0.9571]
[1763515943149,0.405504,3114.1,3113.4,0.001]
[1763515943440,0.272639,3114.0,3113.4,0.001]
[1763515943640,0.405504,3114.0,3113.4,0.001]
[1763515943943,0.864504,3114.0,3113.4,0.001]
[1763515944238,0.405504,3113.8,3113.5,0.001]
[1763515944643,0.656304,3113.6,3113.5,0.001]
[1763515944864,1.31249664,3113.5,3113.1,0.001]
[1763515945008,0.0025,3113.2,3113.1,0.001]
[1763515945211,1.31499664,3113.2,3113.1,0.001]
[1763515945414,1.77399664,3113.2,3113.1,0.001]
[1763515945637,4.51519164,3113.2,3113.1,0.001]
[1763515945838,1.7665158,3113.2,3113.1,0.001]
[1763515946012,1.77399664,3113.2,3113.1,0.001]
[1763515946432,4.01459464,3113.2,3113.1,0.001]
[1763515946624,1.31249664,3113.2,3113.1,0.001]
[1763515947128,2.01819664,3113.2,3113.1,0.001]
[1763515947328,1.56129664,3113.2,3113.1,0.001]
[1763515947510,1.31249664,3113.2,3113.1,0.4683]
[1763515947850,0.405504,3113.8,3113.1,1.1609]
[1763515948349,0.405504,3113.6,3113.1,0.001]
[1763515948556,1.14165117,3114.4,3113.2,0.4936]
[1763515948714,0.654304,3113.2,3113.1,0.001]
[1763515949330,0.405504,3113.2,3113.1,0.001]
[1763515950251,1.111204,3113.2,3113.1,0.001]
[1763515950750,0.405504,3113.2,3113.1,0.001]
[1763515951064,1.36599264,3114.0,3113.1,0.9619]
[1763515951353,0.1932,3114.5,3113.1,0.9619]
[1763515951354,0.50433451,3114.1,3113.1,0.9619]
[1763515951655,0.405504,3114.0,3113.2,0.4936]
[1763515952054,0.63221681,3114.4,3113.2,0.4936]
[1763515952241,0.405504,3114.2,3113.2,0.4936]